Cogmind - Beta 15 @@@ ROGUE MODE // 2025.08.23 @ 16:24:03 Player: StaticNoob Result: Destroyed by Y-64 Sentinel with Wave Gun Performance ------------- Evolutions (5) 2500 Regions Visited (15) 3000 Robots Destroyed (105) 525 Value Destroyed (3176) 3176 Prototype IDs (31) 620 Alien Tech Used (1) 200 Bonus (4259) 4259 TOTAL SCORE: 14280 Bonus ------- High Alert Combat Kills 36 Follower Combat Kills 2033 Network Hubs Disabled 200 Registered with UFD 300 Met Optimus in HQ 500 Met Zhirov 300 Built Enhanced Grunts 300 A7 Reached Mainframe 300 Met R17 at Cetus 500 Friendly Fire -210 Cogmind --------- Core Integrity 0/1000 Matter 250/300 Energy 99/100 System Corruption 32% Temperature Cool (9) Movement Core (50) Location -4/Proximity Caves Parts ------- > --- POWER (3) -------- (None) > --- PROPULSION (2) --- (None) > --- UTILITY (9) ------ Advanced Terrain Scan Processor > --- WEAPON (3) ------- (None) > --- INVENTORY (5) ---- Fusion Reactor Matter Compressor (250) EM Shield Transdimensional Reconstructor Peak State ------------ > --- POWER ------------ Light Ion Engine Neutrino Core Quantum Reactor > --- PROPULSION ------- Overtuned Scrapsphere > --- UTILITY ---------- Scrap Suit Advanced Cooling System Large Storage Unit Makeshift Targeting Computer Quantum Capacitor Transmission Jammer Centrium Medium Armor Plating > --- WEAPON ----------- Improved Arc Projector Neutron Cannon Phasing Sabre > --- INVENTORY -------- Improved Cooling System Energy Well Advanced Energy Well Matter Compressor Improved Signal Interpreter Advanced Terrain Scanner Advanced Terrain Scan Processor Centrium Medium Armor Plating EM Shield Improved Hacking Suite Advanced System Shield Advanced Variable Charge Gun Heavy Plasma Cannon Compact Ion Cannon Compact Ion Cannon [Rating: 90] Favorites ----------- Power Ion Engine Engine Ion Engine Power Core Neutrino Core Reactor Quantum Reactor Propulsion Light Treads Treads Light Treads Leg Carbon-fiber Leg Wheel Overtuned Scrapsphere Flight Unit Makeshift Flight Unit Utility Large Storage Unit Device Cooling System Storage Large Storage Unit Processor Makeshift Targeting Computer Hackware Hacking Suite Protection Centrium Medium Armor Plating Weapon Spread Laser Energy Gun Spread Laser Energy Cannon Neutron Cannon Launcher EMP Blaster Slashing Weapon Phasing Sabre Build | -11 -10 -10 -9 -6 -6 -6 -6 -6 -6 -6 -5 -5 -5 -5 -4 ------- Run | Yrd Mat Sub Scr Fac Was Fac Ext Cet Arc Hub Fac Upp Upp Zhi Pro Slots Evolved 10 | . . . . 8 . . . . . . 2 . . . . Power 2 | . . . . 1 . . . . . . 1 . . . . Propulsion . | . . . . . . . . . . . . . . . . Utility 7 | . . . . 6 . . . . . . 1 . . . . Weapon 1 | . . . . 1 . . . . . . . . . . . Parts Attached 79 | 6 6 2 5 9 4 3 10 3 4 5 5 4 9 4 . Power 15 | 1 . . 1 1 . 1 4 1 1 . 1 2 2 . . Engine 6 | 1 . . 1 1 . 1 . . . . 1 . 1 . . Core 8 | . . . . . . . 4 . 1 . . 2 1 . . Reactor 1 | . . . . . . . . 1 . . . . . . . Propulsion 15 | 2 . 2 2 1 1 . 1 1 . 2 1 1 1 . . Treads 3 | 2 . 1 . . . . . . . . . . . . . Leg 2 | . . . . . . . . 1 . 1 . . . . . Wheel 9 | . . 1 2 1 1 . 1 . . 1 1 1 . . . Hover . | . . . . . . . . . . . . . . . . Flight 1 | . . . . . . . . . . . . . 1 . . Utility 29 | 1 4 . . 5 2 1 . . 3 . 3 1 5 4 . Device 14 | . 1 . . 4 1 1 . . 3 . 1 . 2 1 . Storage 4 | 1 2 . . . 1 . . . . . . . . . . Processor 4 | . 1 . . 1 . . . . . . 1 . 1 . . Hackware 3 | . . . . . . . . . . . . . 1 2 . Protection 4 | . . . . . . . . . . . 1 1 1 1 . Artifact . | . . . . . . . . . . . . . . . . Weapon 20 | 2 2 . 2 2 1 1 5 1 . 3 . . 1 . . Energy Gun 10 | 2 2 . 1 2 . 1 . 1 . 1 . . . . . Energy Cannon 7 | . . . 1 . 1 . 3 . . 2 . . . . . Ballistic Gun . | . . . . . . . . . . . . . . . . Ballistic Cannon . | . . . . . . . . . . . . . . . . Launcher 2 | . . . . . . . 2 . . . . . . . . Special Weapon . | . . . . . . . . . . . . . . . . Impact Weapon . | . . . . . . . . . . . . . . . . Slashing Weapon 1 | . . . . . . . . . . . . . 1 . . Piercing Weapon . | . . . . . . . . . . . . . . . . Special Melee Weapon . | . . . . . . . . . . . . . . . . Unidentified Prototypes 10 | . . . . . 2 1 . 1 . 1 1 1 . 3 . Corrupted Parts 3 | . . . . . . . 1 1 . 1 . . . . . System Corruption 21 | . . . . . . . 11 7 . 3 . . . . . Parts Lost 47 | . . 2 . . 3 1 7 2 . 3 1 3 19 . 6 Power 11 | . . . . . . . 3 1 . . 1 1 5 . . Propulsion 10 | . . 2 . . . . 1 1 . 2 . 1 2 . 1 Utility 14 | . . . . . 1 . . . . . . 1 7 . 5 Weapon 12 | . . . . . 2 1 3 . . 1 . . 5 . . Highest Loss Streak 13 | . . 1 . . 3 1 3 1 . 1 1 3 13 . 6 To Critical Strikes 2 | . . . . . . . . 1 . . . . 1 . . Average Backups 12 | 1 7 13 13 11 14 14 14 14 14 14 14 13 10 3 4 Power . | . 1 1 1 . . . 1 . . . . . 1 . 1 Propulsion . | . . . . 1 1 1 . . . . . . . . . Utility 8 | . 3 8 9 5 5 8 9 10 11 10 10 10 7 2 2 Weapon 3 | . 3 3 2 4 6 5 4 4 3 3 3 2 1 . . Tool/Special . | . . . . . . . . . . . . . . . . Unused Backups 22 | . 1 . 9 . 1 3 . . 1 . . 1 2 . 4 Power 1 | . . . . . . . . . . . . . . . 1 Propulsion 1 | . . . 1 . . . . . . . . . . . . Utility 17 | . 1 . 6 . 1 3 . . 1 . . 1 2 . 2 Weapon 2 | . . . 2 . . . . . . . . . . . . Tool/Special 1 | . . . . . . . . . . . . . . . 1 Average Slot Usage (%) 87 | . 99 99 100 90 77 70 85 83 81 85 79 85 62 34 41 Engine 8 | . 14 14 14 13 9 8 11 . . . 2 2 1 . . Core 2 | . . . . . . . . 6 5 5 5 12 8 . . Reactor 1 | . . . . . . . . 4 6 6 4 . . . . Treads 7 | . 28 25 12 . . . . . . . . . . . . Wheel 9 | . . 2 15 13 13 13 13 10 6 6 5 9 8 . . Device 19 | . 12 14 14 31 29 26 26 26 22 25 23 20 12 13 14 Storage 9 | . 14 14 14 6 6 6 6 6 6 6 5 5 4 . . Processor 3 | . . . . 5 6 6 6 6 6 6 6 11 8 5 5 Energy Gun 14 | . 28 28 24 12 4 6 6 4 6 6 3 2 3 . . Energy Cannon 4 | . . . 3 6 7 . 6 6 6 5 7 11 5 . . Slashing Weapon 1 | . . . . . . . 4 6 6 6 5 2 . . . Peak Build Rating 90 | 6 11 13 18 51 55 68 68 80 83 81 90 89 90 44 44 Average Rating 44 | 4 10 12 14 46 47 59 64 75 78 79 86 84 61 31 39 On Entrance 47 | . 6 11 13 18 51 55 68 64 80 80 78 76 89 23 44 Naked Turns 63 | . . . . . . . . . . . . . 63 . . Heaviest Build 98 | 13 33 33 40 61 61 60 66 78 86 85 98 98 98 7 7 Greatest Support 40 | 40 40 40 26 24 24 24 24 18 8 24 18 24 24 8 8 Greatest Overweight (x) 12 | . 1 1 2 2 2 2 7 9 10 10 12 12 6 . 2 Average Overweight (x) 2 | . . . 1 2 1 1 2 5 9 9 9 5 2 . . Largest Inventory Capacity 15 | 8 15 15 15 15 15 15 15 15 15 15 15 15 15 5 5 Average Capacity 14 | 7 10 15 15 15 15 15 15 15 15 15 15 15 13 5 5 Most Carried 15 | 2 10 15 15 15 15 15 15 15 15 15 15 15 14 5 4 Average Carried 13 | 1 7 14 14 10 14 14 14 14 14 14 14 14 10 3 4 Final Capacity 15 | 8 15 15 15 15 15 15 15 15 15 15 15 15 5 5 5 Final Carried 15 | 2 10 15 15 15 14 15 13 15 13 14 15 13 3 4 4 Class Distribution -------------------- 55% | Mutant 19% | Scavenger-Mutant 13% | Commander-Mutant 5% | Gunner 4% | Scavenger-Gunner Dominant Class ---------------- Mutant | -10/Materials Mutant | -10/Subcaves Mutant | -9/Scraptown Gunner | -6/Factory Mutant | -6/Waste Mutant | -6/Factory Commander-Mutant | -6/Extension Scavenger-Mutant | -6/Cetus Commander-Mutant | -6/Archives Scavenger-Mutant | -6/Hub_04(d) Scavenger-Mutant | -5/Factory Scavenger-Mutant | -5/Upper Caves Scavenger-Mutant | -5/Upper Caves Hacker-Mutant | -5/Zhirov Hacker-Mutant | -4/Proximity Caves Resources | -11 -10 -10 -9 -6 -6 -6 -6 -6 -6 -6 -5 -5 -5 -5 -4 ----------- Run | Yrd Mat Sub Scr Fac Was Fac Ext Cet Arc Hub Fac Upp Upp Zhi Pro Matter Collected 1728 | 208 124 167 259 141 . 100 195 134 62 122 45 30 141 . . Remotely . | . . . . . . . . . . . . . . . . Salvage Created 4472 | . 366 238 . 255 . 554 644 . 297 356 1015 210 537 . . Parts 204 | . 26 14 . 12 . 15 23 . 21 29 41 13 10 . . Haulers Intercepted 5 | . 2 . . 1 . 1 . . . . 1 . . . . Recyclers Shooed 5 | . . . . . . 1 1 . . . 3 . . . . Parts Field Recycled . | . . . . . . . . . . . . . . . . Retrieved Matter . | . . . . . . . . . . . . . . . . Parts Self-Destructed 19 | . . 6 . . . . . . . . . 7 6 . . Prevented 7 | . . . . . . . . . . . . 3 1 . 3 Kills | -11 -10 -10 -9 -6 -6 -6 -6 -6 -6 -6 -5 -5 -5 -5 -4 ------- Run | Yrd Mat Sub Scr Fac Was Fac Ext Cet Arc Hub Fac Upp Upp Zhi Pro Combat Hostiles Destroyed 57 | . 11 7 . 2 . 5 11 . . 4 3 6 8 . . Guns 38 | . 10 7 . 1 . 5 4 . . 1 1 5 4 . . Cannons 10 | . . . . 1 . . 1 . . 3 2 1 2 . . AOE 4 | . 1 . . . . . 3 . . . . . . . . Classes Destroyed 16 | . 7 1 . 2 . 3 1 . . . . . 2 . . Worker 13 | . 3 . . 1 . . 1 . . 7 1 . . . . Builder 5 | . . . . . . 1 . . . 3 1 . . . . Tunneler 2 | . 1 . . . . . . . . . 1 . . . . Hauler 5 | . 2 . . 1 . 1 . . . . 1 . . . . Recycler 6 | . 1 . . . . 1 . . . . 4 . . . . Minesweeper 1 | . . . . . . . . . . . . . 1 . . Operator 12 | . . . . 2 . . 1 . 9 . . . . . . Watcher 4 | . . . . 1 . . . . . . 3 . . . . Swarmer 14 | . 5 . . . . . 2 . . 2 . 5 . . . Grunt 20 | . 5 2 . 2 . 2 4 . . 2 1 . 2 . . Brawler 1 | . . . . . . . . . . . . . 1 . . Duelist 4 | . . . . . . 1 1 . . . . . 2 . . Sentry 6 | . . 1 . . . 1 3 . . . . . 1 . . Hunter 4 | . . . . . . . 1 . . . . 1 2 . . Programmer 3 | . . . . . . 1 . . . . 2 . . . . Subdweller 5 | . 1 4 . . . . . . . . . . . . . Best Kill Streak 12 | . 4 2 . 4 . 4 3 . 3 12 4 5 3 . . Combat Bots Only 5 | . 3 2 . 2 . 3 3 . . 3 2 5 3 . . Max Kills in Single Turn 9 | . 2 1 . 1 . 1 2 . 1 9 1 1 1 . . Gunslinging 1 | . 1 . . . . . . . . . . . . . . Exploded 2 | . 1 . . . . . 2 . . . . . . . . Melee . | . . . . . . . . . . . . . . . . Uniques/NPCs Destroyed . | . . . . . . . . . . . . . . . . Combat | -11 -10 -10 -9 -6 -6 -6 -6 -6 -6 -6 -5 -5 -5 -5 -4 -------- Run | Yrd Mat Sub Scr Fac Was Fac Ext Cet Arc Hub Fac Upp Upp Zhi Pro Hostile Shots Fired 456 | . 36 28 . 7 2 20 111 11 . 28 10 41 110 . 52 Missed 140 | . 17 8 . 1 . 6 40 3 . 7 5 8 23 . 22 Hits 316 | . 19 20 . 6 2 14 71 8 . 21 5 33 87 . 30 Melee 20 | . . . . . 2 2 . . . . . . 15 . 1 Projectile 296 | . 19 20 . 6 . 12 71 8 . 21 5 33 72 . 29 AOE 1 | . . . . . . . . . . 1 . . . . . Critical Strikes 22 | . 2 2 . . 1 2 . 4 . . 1 1 9 . . Part Disruptions 1 | . 1 . . . . . . . . . . . . . . Damage Taken 6111 | . 292 353 . 116 88 235 865 239 70 634 149 484 2055 . 531 Core 1461 | . 87 15 . . . 117 125 34 . 71 21 57 626 . 308 Absorbed by Shields 243 | . . . . . . . 140 103 . . . . . . . Regen/Repaired (Parts) 152 | . . . . . 3 44 40 25 . 16 4 20 . . . Core Remaining (%) 72 | 100 . . 59 . . . . . . 59 . . . . . Volleys Fired 368 | . 30 19 . 12 3 39 76 23 2 48 44 25 47 . . Largest 3 | . 2 2 . 3 1 1 2 1 2 1 2 1 1 . . Hottest 330 | . 130 130 . 235 90 88 135 240 330 240 171 81 240 . . Shots Fired 446 | . 60 38 . 32 3 39 82 23 5 47 45 25 47 . . Gun 297 | . 60 38 . 20 . 39 49 4 3 14 28 22 20 . . Cannon 137 | . . . . 12 3 . 21 19 2 33 17 3 27 . . Launcher 12 | . . . . . . . 12 . . . . . . . . Special . | . . . . . . . . . . . . . . . . Kinetic . | . . . . . . . . . . . . . . . . Thermal 359 | . 60 38 . 32 3 39 52 23 5 35 13 22 37 . . Explosive . | . . . . . . . . . . . . . . . . Electromagnetic 87 | . . . . . . . 30 . . 12 32 3 10 . . Robot Hit Streak 21 | . 21 13 . 8 5 18 16 7 4 4 12 3 7 . . Robot Miss Streak 9 | . 9 8 . 4 . 3 2 1 1 3 2 3 6 . . Penetration Max . | . . . . . . . . . . . . . . . . Secondary Targets 3 | . 3 . . . . . . . . . . . . . . Max Gunslinging Chain 1 | . 1 . . . . . . . . . . . . . . Capacitor 277 | . . . . . 3 27 60 23 3 47 43 25 46 . . Shots Hit Robots 374 | . 55 34 . 22 3 33 69 18 16 29 45 15 35 . . Core Hits 255 | . 70 43 . 18 1 13 39 5 6 20 19 7 14 . . Critical Kills 1 | . . . . . . . . . . . . . 1 . . Critical Parts Destroyed . | . . . . . . . . . . . . . . . . Critical Strikes 8 | . . . . 3 . 1 . . 1 . . . 3 . . Burn 4 | . . . . 3 . 1 . . . . . . . . . Meltdown 1 | . . . . . . . . . . . . . 1 . . Corrupt 1 | . . . . . . . . . . . . . 1 . . Sever 2 | . . . . . . . . . 1 . . . 1 . . Melee Attacks 25 | . . . . . . . . . 13 . 10 1 1 . . Impact . | . . . . . . . . . . . . . . . . Slashing 25 | . . . . . . . . . 13 . 10 1 1 . . Piercing . | . . . . . . . . . . . . . . . . Sneak Attacks 18 | . . . . . . . . . 12 . 5 1 . . . Combat Hostiles . | . . . . . . . . . . . . . . . . Follow-up Attacks . | . . . . . . . . . . . . . . . . Damage Inflicted 12017 | . 856 526 . 471 83 950 2006 600 1388 1676 1573 566 1322 . . Guns 5295 | . 744 523 . 291 . 950 1053 82 34 184 370 431 633 . . Cannons 3366 | . . . . 180 83 . 478 518 33 676 675 73 650 . . Explosions 1395 | . 104 . . . . . 475 . . 816 . . . . . Melee 1950 | . . . . . . . . . 1321 . 528 62 39 . . Ramming 11 | . 8 3 . . . . . . . . . . . . . Kinetic . | . . . . . . . . . . . . . . . . Thermal 7661 | . 848 523 . 471 83 950 1335 600 67 740 522 431 1091 . . Explosive . | . . . . . . . . . . . . . . . . Electromagnetic 2395 | . . . . . . . 671 . . 936 523 73 192 . . Impact . | . . . . . . . . . . . . . . . . Slashing 1950 | . . . . . . . . . 1321 . 528 62 39 . . Piercing . | . . . . . . . . . . . . . . . . Highest Corruption 31 | . . . . . . 5 16 23 23 11 . . 31 31 31 Average Corruption 11 | . . . . . . 4 5 21 13 8 . . 29 31 31 Corruption Purged 20 | . . . . . . . . . 20 . . . . . . Corruption Blocked . | . . . . . . . . . . . . . . . . Effects 105 | . . . . . . 6 28 14 18 21 . . 7 4 7 Message Errors 30 | . . . . . . 4 10 2 7 5 . . . . 2 Matter Fused 22 | . . . . . . 1 6 4 4 5 . . 1 1 . Heat Flow Errors 7 | . . . . . . . 3 1 . 1 . . 1 1 . Energy Discharges 14 | . . . . . . 1 2 5 . 3 . . 2 1 . Parts Rejected 1 | . . . . . . . . 1 . . . . . . . Data Loss (minor) 9 | . . . . . . . 4 . 2 2 . . 1 . . Data Loss (major) 6 | . . . . . . . 2 1 1 . . . . 1 1 Misfires 4 | . . . . . . . 1 . 2 1 . . . . . Alerts 2 | . . . . . . . . . 2 . . . . . . Misdirections 7 | . . . . . . . . . . 1 . . 2 . 4 Weapon Failures 3 | . . . . . . . . . . 3 . . . . . Overload Shots 19 | . . . . . . . . 3 1 2 . . 13 . . Overflow Damage 859 | . . . . . . . . 15 507 71 249 16 1 . . Projectiles 92 | . . . . . . . . 15 . 4 72 . 1 . . Explosions 67 | . . . . . . . . . . 67 . . . . . Melee 700 | . . . . . . . . . 507 . 177 16 . . . Knockbacks . | . . . . . . . . . . . . . . . . Impact . | . . . . . . . . . . . . . . . . Kinetic . | . . . . . . . . . . . . . . . . Secondary . | . . . . . . . . . . . . . . . . Self-Inflicted Damage 154 | . . . . . . . 53 . . 101 . . . . . Shots 3 | . . . . . . . 2 . . 1 . . . . . Rammed 3 | . 2 1 . . . . . . . . . . . . . Targets Rammed 3 | . 2 1 . . . . . . . . . . . . . Kicked . | . . . . . . . . . . . . . . . . Crushed . | . . . . . . . . . . . . . . . . Highest Temperature 889 | . 548 8 . 324 183 309 306 445 198 306 348 397 889 219 . Average Temperature 145 | . 62 8 . 150 122 104 81 174 78 132 120 168 285 110 . Received Heat Transfer 1514 | . 569 153 . 54 . 69 165 18 . 147 9 . 288 . 42 Effects 27 | . 2 . . . . . . 2 . 1 1 . 21 . . Shutdowns 8 | . 1 . . . . . . . . . 1 . 6 . . Energy Bleed 6 | . . . . . . . . 1 . 1 . . 4 . . Interference 1 | . . . . . . . . . . . . . 1 . . Matter Decay 3 | . . . . . . . . 1 . . . . 2 . . Short Circuit 2 | . . . . . . . . . . . . . 2 . . Damage (minor) 4 | . 1 . . . . . . . . . . . 3 . . Damage (major) 2 | . . . . . . . . . . . . . 2 . . Damage (core) 1 | . . . . . . . . . . . . . 1 . . Siege Activations . | . . . . . . . . . . . . . . . . Martial Activations . | . . . . . . . . . . . . . . . . Shielding Activations . | . . . . . . . . . . . . . . . . Robots Disrupted 3 | . . . . . . . . . . 1 2 . . . . Combat Hostiles 2 | . . . . . . . . . . 1 1 . . . . Robots Corrupted 5 | . . . . . . . 2 . . . 1 . 2 . . Combat Hostiles 3 | . . . . . . . 2 . . . . . 1 . . Parts Fried 13 | . . . . . . . 6 . . . 5 . 2 . . Impact Corruptions . | . . . . . . . . . . . . . . . . Robots Melted 5 | . . . . 1 . 2 1 . . . . . 1 . . Combat Hostiles 2 | . . . . . . . 1 . . . . . 1 . . Parts Melted 20 | . . 2 . 1 . 7 6 . . . 1 . 3 . . Heat Transferred 10133 | . 1030 635 . 1025 111 1825 2508 887 87 198 . 555 1272 . . Parts Sabotaged . | . . . . . . . . . . . . . . . . Parts Stolen . | . . . . . . . . . . . . . . . . Parts Stripped . | . . . . . . . . . . . . . . . . Power Chain Reactions 4 | . . . . . . . 4 . . . . . . . . Alert | -11 -10 -10 -9 -6 -6 -6 -6 -6 -6 -6 -5 -5 -5 -5 -4 ------- Run | Yrd Mat Sub Scr Fac Was Fac Ext Cet Arc Hub Fac Upp Upp Zhi Pro Maximum Alert Level 3 | . . . . . . . 2 2 1 3 1 . . . . Low Security (%) 65 | 100 100 . . 100 100 100 94 . 34 50 . . . . . Level 1 27 | . . . . . . . 1 50 65 31 100 . . . . Level 2 6 | . . . . . . . 4 50 . 16 . . . . . Level 3 . | . . . . . . . . . . 1 . . . . . Level 4 . | . . . . . . . . . . . . . . . . Level 5 . | . . . . . . . . . . . . . . . . High Security . | . . . . . . . . . . . . . . . . Max Security . | . . . . . . . . . . . . . . . . Peak Influence 791 | . 193 . . 47 . 97 559 440 277 791 383 . . . . Initial 383 | . . . . . . . 16 309 143 51 383 . . . . Average 144 | . 111 . . 14 . 29 54 392 211 220 283 . . . . Influence Increases 4117 | . 324 70 . 86 . 168 1042 339 254 1016 180 163 355 . 120 Destroy 0b10 Robot/C 1880 | . 200 60 . 40 . 100 500 160 80 380 60 140 160 . . Destroy 0b10 Robot/NC 275 | . 35 . . 25 . 15 20 10 45 60 60 . 5 . . Destroy Leader 286 | . 44 10 . 4 . 32 64 . . 82 20 20 10 . . Allied During Kill 891 | . . . . . . . 336 148 125 275 4 3 . . . Successful Hack 90 | . 12 . . 10 . 4 34 . . . 30 . . . . Disable Machine 165 | . 15 . . . . 15 60 15 . 60 . . . . . Destroy Structure 215 | . 18 . . 7 . 2 28 6 4 144 6 . . . . Lose Combat Pursuer 315 | . . . . . . . . . . 15 . . 180 . 120 Influence Decreases 4087 | . 257 137 . 86 . 133 524 534 465 380 704 385 258 134 90 Entered New Map 1246 | . . 33 . . . . 19 244 215 96 400 97 8 134 . Time Decay 2152 | . 257 104 . 86 . 123 268 150 230 212 294 238 170 . 20 Lost Part 296 | . . . . . . 10 56 20 . 30 10 30 80 . 60 Lost Ally 283 | . . . . . . . 71 120 20 42 . 20 . . 10 Purge Threat 110 | . . . . . . . 110 . . . . . . . . Squads Dispatched 15 | . 3 . . 1 . 1 2 . . 5 2 . . . 1 Investigation 3 | . 1 . . . . . 1 . . 1 . . . . . Extermination 4 | . . . . . . 1 . . . 2 1 . . . . Reinforcement 6 | . 2 . . 1 . . 1 . . 1 1 . . . . Assault 1 | . . . . . . . . . . . . . . . 1 Garrison 1 | . . . . . . . . . . 1 . . . . . Intercept . | . . . . . . . . . . . . . . . . Searches Triggered . | . . . . . . . . . . . . . . . . Construction Impeded 1 | . . . . . . . 1 . . . . . . . . Haulers Reinforced 1 | . . . . 1 . . . . . . . . . . . Active Scanning Responses . | . . . . . . . . . . . . . . . . Cargo Convoy Interrupts . | . . . . . . . . . . . . . . . . Stealth | -11 -10 -10 -9 -6 -6 -6 -6 -6 -6 -6 -5 -5 -5 -5 -4 --------- Run | Yrd Mat Sub Scr Fac Was Fac Ext Cet Arc Hub Fac Upp Upp Zhi Pro Distress Signals 5 | . . . . . . . 3 2 . . . . . . . Communications Jammed 8 | . . . . 1 . . 2 . 1 4 . . . . . Distress Signals 8 | . . . . 1 . . 2 . 1 4 . . . . . Times Spotted 161 | . 23 7 . 5 5 5 29 10 7 17 12 6 18 . 17 Peak Tracking Total 14 | . 4 2 . 2 6 2 7 5 2 3 2 5 10 . 14 Tactical Retreats 9 | . 1 . . . 1 . . . . 1 . . 4 . 2 Traps | -11 -10 -10 -9 -6 -6 -6 -6 -6 -6 -6 -5 -5 -5 -5 -4 ------- Run | Yrd Mat Sub Scr Fac Was Fac Ext Cet Arc Hub Fac Upp Upp Zhi Pro Traps Triggered 14 | . 3 . . 1 . 3 1 . . 5 1 . . . . Indirectly . | . . . . . . . . . . . . . . . . Trap Hack Attempts . | . . . . . . . . . . . . . . . . Triggered . | . . . . . . . . . . . . . . . . Disarmed 6 | . . . . . . . 6 . . . . . . . . Reprogrammed . | . . . . . . . . . . . . . . . . Reused . | . . . . . . . . . . . . . . . . Traps Extracted . | . . . . . . . . . . . . . . . . Installed . | . . . . . . . . . . . . . . . . Triggered . | . . . . . . . . . . . . . . . . Machines | -11 -10 -10 -9 -6 -6 -6 -6 -6 -6 -6 -5 -5 -5 -5 -4 ---------- Run | Yrd Mat Sub Scr Fac Was Fac Ext Cet Arc Hub Fac Upp Upp Zhi Pro Machines Disabled 13 | . 1 . . . . 1 6 1 . 4 . . . . . Max in Single Turn 3 | . 1 . . . . 1 . 1 . 3 . . . . . Network Hub 1 | . . . . . . . . . . 1 . . . . . Energy Cycler 3 | . . . . . . . 3 . . . . . . . . Machines Repaired . | . . . . . . . . . . . . . . . . Machines Dismantled . | . . . . . . . . . . . . . . . . Machines Sabotaged . | . . . . . . . . . . . . . . . . Overloaded Fab Kills . | . . . . . . . . . . . . . . . . Hacking | -11 -10 -10 -9 -6 -6 -6 -6 -6 -6 -6 -5 -5 -5 -5 -4 --------- Run | Yrd Mat Sub Scr Fac Was Fac Ext Cet Arc Hub Fac Upp Upp Zhi Pro Machines Accessed 31 | . 2 . 1 2 . 8 10 1 . 1 2 . . 4 . Terminals 19 | . 2 . . 1 . 3 10 1 . 1 1 . . . . Fabricators 1 | . . . . . . 1 . . . . . . . . . Repair Stations 1 | . . . . . . . . . . . 1 . . . . Recycling Units 5 | . . . . 1 . 4 . . . . . . . . . Scanalyzers . | . . . . . . . . . . . . . . . . Garrison Access . | . . . . . . . . . . . . . . . . Total Hacks 80 | . 8 . 1 7 . 14 25 2 . 1 5 . . 17 . Successful 42 | . 4 . 1 3 . 2 12 . . 1 2 . . 17 . Failed 37 | . 4 . . 4 . 12 12 2 . . 3 . . . . Catastrophic 8 | . 1 . . . . 4 2 1 . . . . . . . Database Lockouts 1 | . . . . . . . 1 . . . . . . . . Manual 28 | . 5 . . 6 . 4 10 1 . 1 1 . . . . Terminals 50 | . 8 . . 5 . 5 25 2 . 1 4 . . . . Fabricators 1 | . . . . . . 1 . . . . . . . . . Repair Stations 1 | . . . . . . . . . . . 1 . . . . Recycling Units 10 | . . . . 2 . 8 . . . . . . . . . Scanalyzers . | . . . . . . . . . . . . . . . . Garrison Access . | . . . . . . . . . . . . . . . . Terminal Hacks 32 | . 1 . 1 2 . 1 10 . . . . . . 17 . Record 5 | . . . . . . . . . . . . . . 5 . Part Schematic 4 | . . . . . . . . . . . . . . 4 . Robot Analysis 5 | . . . . . . . 1 . . . . . . 4 . Prototype ID Bank 7 | . 1 . . 1 . . 1 . . . . . . 4 . Open Door 4 | . . . . . . 1 3 . . . . . . . . Branch Access Points 1 | . . . . 1 . . . . . . . . . . . Unreport Threat 2 | . . . . . . . 2 . . . . . . . . Locate Traps 1 | . . . . . . . 1 . . . . . . . . Disarm Traps 1 | . . . . . . . 1 . . . . . . . . Zone Layout 1 | . . . . . . . 1 . . . . . . . . Proto ID Catalog 1 | . . . 1 . . . . . . . . . . . . Fabricator Hacks . | . . . . . . . . . . . . . . . . Repair Station Hacks 1 | . . . . . . . . . . . 1 . . . . Refit 1 | . . . . . . . . . . . 1 . . . . Recycling Unit Hacks 1 | . . . . . . 1 . . . . . . . . . Retrieve Components 1 | . . . . . . 1 . . . . . . . . . Scanalyzer . | . . . . . . . . . . . . . . . . Garrison Access Hacks . | . . . . . . . . . . . . . . . . Unauthorized Hacks 8 | . 3 . . 1 . . 2 . . 1 1 . . . . Terminals 8 | . 3 . . 1 . . 2 . . 1 1 . . . . Botnet 5 | . 1 . . 1 . . 2 . . . 1 . . . . Skim 2 | . 2 . . . . . . . . . . . . . . Sabotage 1 | . . . . . . . . . . 1 . . . . . Fabricators . | . . . . . . . . . . . . . . . . Repair Stations . | . . . . . . . . . . . . . . . . Recycling Units . | . . . . . . . . . . . . . . . . Scanalyzers . | . . . . . . . . . . . . . . . . Garrison Access . | . . . . . . . . . . . . . . . . Data Cores Recovered 3 | . . . . 2 . . 1 . . . . . . . . Used 2 | . . . . 1 . . 1 . . . . . . . . Hacking Detections 24 | . 2 . . 2 . 7 9 2 . . 2 . . . . Full Trace Events 1 | . . . . . . . 1 . . . . . . . . Feedback Events . | . . . . . . . . . . . . . . . . Feedback Blocked . | . . . . . . . . . . . . . . . . Robot Schematics Acquired . | . . . . . . . . . . . . . . . . Robots Built . | . . . . . . . . . . . . . . . . Authchips . | . . . . . . . . . . . . . . . . Time . | . . . . . . . . . . . . . . . . Total Robot Build Rating . | . . . . . . . . . . . . . . . . Part Schematics Acquired 4 | . . . . . . . . . . . . . . 4 . Parts Built . | . . . . . . . . . . . . . . . . Authchips . | . . . . . . . . . . . . . . . . Time . | . . . . . . . . . . . . . . . . Total Part Build Rating . | . . . . . . . . . . . . . . . . Parts Repaired . | . . . . . . . . . . . . . . . . Time . | . . . . . . . . . . . . . . . . Parts Recycled . | . . . . . . . . . . . . . . . . Recycled Matter . | . . . . . . . . . . . . . . . . Retrieved Matter . | . . . . . . . . . . . . . . . . Retrieved Components 3 | . . . . . . 3 . . . . . . . . . Parts Scanalyzed . | . . . . . . . . . . . . . . . . Part Schematics Acquired . | . . . . . . . . . . . . . . . . Parts Damaged . | . . . . . . . . . . . . . . . . Bothacking | -11 -10 -10 -9 -6 -6 -6 -6 -6 -6 -6 -5 -5 -5 -5 -4 ------------ Run | Yrd Mat Sub Scr Fac Was Fac Ext Cet Arc Hub Fac Upp Upp Zhi Pro Used RIF Installer . | . . . . . . . . . . . . . . . . Robots Hacked . | . . . . . . . . . . . . . . . . Non-combat . | . . . . . . . . . . . . . . . . Combat . | . . . . . . . . . . . . . . . . Robot Hacks Applied . | . . . . . . . . . . . . . . . . Relay Couplers Released . | . . . . . . . . . . . . . . . . Fabnet Peak Effective % . | . . . . . . . . . . . . . . . . Robots Rewired 7 | . . . . . . . 6 . . . 1 . . . . Allies Hacked 1 | . . . . . . . . . . . 1 . . . . Hacks Repelled . | . . . . . . . . . . . . . . . . Allies | -11 -10 -10 -9 -6 -6 -6 -6 -6 -6 -6 -5 -5 -5 -5 -4 -------- Run | Yrd Mat Sub Scr Fac Was Fac Ext Cet Arc Hub Fac Upp Upp Zhi Pro Total Allies 19 | . . . . . . . 13 5 . . 1 . . . . Largest Group 11 | . . . . . . . 9 11 8 6 1 1 . . . Highest-Rated Group 681 | . . . . . . . 418 681 681 498 29 29 . . . Highest-Rated Ally 159 | . . . . . . . 159 152 152 96 29 29 . . . Total Orders 10 | . . . . . . . . . . 2 . . 6 . 2 STAY 2 | . . . . . . . . . . 2 . . . . . EXPLORE 5 | . . . . . . . . . . . . . 3 . 2 RETURN 3 | . . . . . . . . . . . . . 3 . . Ally Attacks 281 | . . . . . . . 117 57 19 64 19 5 . . . Total Damage 6813 | . . . . . . . 2579 1253 624 2029 271 57 . . . Kills 49 | . . . . . . . 16 10 4 17 1 1 . . . Allies Corrupted . | . . . . . . . . . . . . . . . . Allies Melted 1 | . . . . . . . 1 . . . . . . . . Intel | -11 -10 -10 -9 -6 -6 -6 -6 -6 -6 -6 -5 -5 -5 -5 -4 ------- Run | Yrd Mat Sub Scr Fac Was Fac Ext Cet Arc Hub Fac Upp Upp Zhi Pro Active Infowar (turns) 4658 | . . . . 281 130 529 989 310 163 524 655 516 367 98 96 Terrain 201 | . . . . . . . . . . . . . 7 98 96 Jamming 4457 | . . . . 281 130 529 989 310 163 524 655 516 360 . . Robot Analysis Total 5 | . . . . . . . 1 . . . . . . 4 . Derelict Logs Recovered 5 | . . 1 2 . . . . . . . . 1 1 . . Drone Launches 9 | . . . . . . . . . . . . . 3 . 6 Drone Recoveries 7 | . . . . . . . . . . . . . 3 . 4 Exploration | -11 -10 -10 -9 -6 -6 -6 -6 -6 -6 -6 -5 -5 -5 -5 -4 ------------- Run | Yrd Mat Sub Scr Fac Was Fac Ext Cet Arc Hub Fac Upp Upp Zhi Pro Turns Passed 9199 | 82 662 687 2606 285 130 529 1025 310 499 524 655 516 489 98 102 Spaces Moved 5772 | 47 317 356 1590 211 114 445 699 189 213 258 331 337 341 140 184 Core 120 | 3 . . . . . . . . . . . . 89 . 28 Treads 1248 | 44 317 356 531 . . . . . . . . . . . . Legs . | . . . . . . . . . . . . . . . . Wheels 4069 | . . . 1059 211 114 445 699 189 213 258 331 337 213 . . Hover . | . . . . . . . . . . . . . . . . Flight 335 | . . . . . . . . . . . . . 39 140 156 Fastest Speed 50 | 50 160 160 105 109 95 95 99 99 150 121 111 111 50 55 50 Average Speed 137 | 152 163 168 162 109 101 100 110 133 168 165 167 142 102 55 55 Slowest Speed 350 | 160 240 240 240 109 109 110 140 160 170 170 190 190 350 55 150 Overloaded Moves . | . . . . . . . . . . . . . . . . Propulsion Burnouts . | . . . . . . . . . . . . . . . . Robots Hopped 1 | . . . . . . . . . . . . . . . 1 Potential Cave-ins . | . . . . . . . . . . . . . . . . Cave-ins Triggered . | . . . . . . . . . . . . . . . . Exploration Rate (%) 46 | 4 54 27 89 11 68 10 86 64 88 39 11 57 44 60 34 Regions Visited 15 Branch Regions 10 Pre-discovered Areas 4 | . . . . . . . . . . . . . 1 3 . Known Exits Taken 3 | . . . . . . 1 . . . . 1 1 . . . Unknown Exits Taken 10 | 1 1 1 1 . . . 1 1 1 1 . . 1 1 . Scrap Searched 12 | . . . 7 . . . . . . . . 2 2 . 1 Spaces Dug 3 | . . . . . . . . . . 2 1 . . . . Terrain Destroyed 249 | . 21 . . 5 . 2 26 3 2 179 2 3 6 . . Melee 1 | . . . . . . . . . . . 1 . . . . Projectile 37 | . . . . 5 . 2 3 3 2 12 1 3 6 . . AOE 211 | . 21 . . . . . 23 . . 167 . . . . . Terrain Rammed . | . . . . . . . . . . . . . . . . Walls Destroyed . | . . . . . . . . . . . . . . . . Machines Disabled . | . . . . . . . . . . . . . . . . Actions | -11 -10 -10 -9 -6 -6 -6 -6 -6 -6 -6 -5 -5 -5 -5 -4 --------- Run | Yrd Mat Sub Scr Fac Was Fac Ext Cet Arc Hub Fac Upp Upp Zhi Pro Total 6808 | 54 400 404 1623 241 130 516 924 241 335 351 412 371 463 159 184 Wait 324 | . 31 19 . 1 . 18 60 24 94 22 5 . 38 12 . Move 5756 | 46 316 355 1589 211 113 444 698 188 212 257 330 336 340 139 182 Hop 1 | . . . . . . . . . . . . . . . 1 Pick Up 61 | 2 8 7 13 7 3 6 4 2 2 2 1 2 . 2 . Fast Attach 43 | 6 4 . 3 . 2 1 1 4 4 6 2 2 4 4 . Attach 35 | . . 2 1 8 1 1 6 . 2 1 1 2 9 1 . Detach 7 | . . . . 1 1 . 1 . 1 2 1 . . . . Swap 16 | . 4 . 1 1 1 1 3 . . . 2 1 2 . . Drop 55 | . 5 1 16 . 6 6 3 . 5 3 3 2 3 1 1 Fire 368 | . 30 19 . 12 3 39 76 23 2 48 44 25 47 . . Melee 25 | . . . . . . . . . 13 . 10 1 1 . . Ram . | . . . . . . . . . . . . . . . . Kick . | . . . . . . . . . . . . . . . . Crush 3 | . 2 1 . . . . . . . . . . . . . Escape Stasis 8 | . . . . . . . 8 . . . . . . . . Rewire 106 | . . . . . . . 64 . . 10 13 . 19 . . Trap . | . . . . . . . . . . . . . . . . Miscellaneous . | . . . . . . . . . . . . . . . . Route ------- -11/Scrapyard -10/Materials (discovered 4 exits: [*Mat x2] / [*Min] / [*Sub]) -10/Subcaves (discovered 3 exits: [*Mat x2] / *Scr) -9/Scraptown (discovered 2 exits: *Fac x2) -6/Factory (discovered 4 exits: Low x2 / Ext x2) -6/Waste -6/Factory -6/Extension (discovered 2 exits: *Fac / *Cet) -6/Cetus (discovered 2 exits: *Fac / [*Arc]) -6/Archives (discovered 3 exits: *Fac / *Hub x2) -6/Hub_04(d) (discovered 2 exits: *Fac x2) -5/Factory -5/Upper Caves -5/Upper Caves (discovered 2 exits: Fac / *Zhi) -5/Zhirov -4/Proximity Caves History --------- Turn | Location | Event 4 | -11/Scrapyard | Discovered new exit (range 15) 83 | -11/Scrapyard | Entered Materials 209 | -10/Materials | Discovered new exit (range 14) 312 | -10/Materials | Build established: Mutant 386 | -10/Materials | Discovered new exit (range 16) 555 | -10/Materials | Discovered new exit (range 7) 583 | -10/Materials | Derelicts attacked the area 619 | -10/Materials | Discovered new exit (range 10) 745 | -10/Materials | Entered Subcaves 746 | -10/Subcaves | Approached by a straggling Scientist 881 | -10/Subcaves | Discovered new exit (range 7) 891 | -10/Subcaves | Learned Materials garrison access intel 896 | -10/Subcaves | Scientist uncovered a shortcut to Scraptown 1049 | -10/Subcaves | Discovered new exit (range 6) 1432 | -10/Subcaves | Entered Scraptown 1650 | -9/Scraptown | Heard Great Nut preacher, LISTEN AND RECITE! 1804 | -9/Scraptown | Visited Fellowship of the Rings 2238 | -9/Scraptown | Visited Symbiants 2291 | -9/Scraptown | Visited UFD Registry 2291 | -9/Scraptown | Registered with UFD as "Autochaser" 2344 | -9/Scraptown | Visited Cave Peace 2358 | -9/Scraptown | Visited Comm Corps 2442 | -9/Scraptown | Visited Red Mages 2630 | -9/Scraptown | Scanned Subdweller tech in exchange for log data 2637 | -9/Scraptown | Learned Factory emergency access door positions 2639 | -9/Scraptown | Learned location of 2 exits from Upper Caves 2666 | -9/Scraptown | Discovered new exit (range 13) 3121 | -9/Scraptown | Visited Modified Component R&D 3164 | -9/Scraptown | Visited Science Guys 3208 | -9/Scraptown | Visited Derelict Rescue Squad 3268 | -9/Scraptown | Found Scrap Suit 3304 | -9/Scraptown | Visited Botcube Research 3338 | -9/Scraptown | Visited DA-N13 Charitable Foundation 3350 | -9/Scraptown | Found DCF Scrap (32 items) 3385 | -9/Scraptown | Visited Junk Repository 3449 | -9/Scraptown | Delivered Scrap Shield to a Scientist 3620 | -9/Scraptown | Visited Junk Repository 3662 | -9/Scraptown | Visited LU-1G1's Boring Crew 3680 | -9/Scraptown | Visited Scrapoid Research Area 3975 | -9/Scraptown | Met Optimus 3975 | -9/Scraptown | Accepted into 0bPrime 4034 | -9/Scraptown | Discovered new exit (range 5) 4038 | -9/Scraptown | Entered Factory 4038 | -6/Factory | Evolved 8 slots: Power x1, Utility x6, Weapon x1 4299 | -6/Factory | Identified exit to Lower Caves 4299 | -6/Factory | Identified exit to Extension 4323 | -6/Factory | Sucked down chute 4323 | -6/Factory | Entered Waste 4346 | -6/Waste | Spotted C-40 Crusher 4347 | -6/Waste | Spotted C-40 Crusher 4354 | -6/Waste | Build established: Gunner 4361 | -6/Waste | Found Quantum Capacitor 4363 | -6/Waste | Spotted C-40 Crusher 4373 | -6/Waste | Crushed by Compactor (1 part destroyed, 1 dropped) 4376 | -6/Waste | Crushed by Compactor (1 part destroyed) 4393 | -6/Waste | Spotted C-40 Crusher 4399 | -6/Waste | Spotted C-40 Crusher 4407 | -6/Waste | Lost 3 parts (1u2w) 4429 | -6/Waste | Discovered new exit (range 12) 4453 | -6/Waste | Entered Factory 4660 | -6/Factory | Build established: Mutant 4928 | -6/Factory | Discovered exit to Extension (range 5) 4982 | -6/Factory | Entered Extension 5137 | -6/Extension | Rescued a captive Derelict 5138 | -6/Extension | Rescued a captive Derelict 5364 | -6/Extension | Rescued A7 5602 | -6/Extension | Spotted B-75 Beast 5623 | -6/Extension | Allies destroyed B-75 Beast 5629 | -6/Extension | Spotted B-75 Beast 5633 | -6/Extension | Allies destroyed B-75 Beast 5714 | -6/Extension | Rescued a captive Derelict 5715 | -6/Extension | Rescued a captive Derelict 5728 | -6/Extension | Energy Cycler disabled 5728 | -6/Extension | Rescued a captive Derelict 5728 | -6/Extension | Rescued a captive Derelict 5728 | -6/Extension | Rescued a captive Derelict 5729 | -6/Extension | Rescued a captive Derelict 5731 | -6/Extension | Rescued a captive Derelict 5732 | -6/Extension | Rescued a captive Derelict 5733 | -6/Extension | Rescued a captive Derelict 5735 | -6/Extension | Rescued a captive Derelict 5749 | -6/Extension | Build established: Commander-Mutant 5795 | -6/Extension | Central database locked down 5937 | -6/Extension | Discovered new exit (range 11) 5938 | -6/Extension | Discovered new exit (range 7) 5985 | -6/Extension | System corruption reached 10% 5992 | -6/Extension | Lost 3 parts (2p1w) 6007 | -6/Extension | Entered Cetus 6007 | -6/Cetus | Accompanied by 9 allies (A7) 6012 | -6/Cetus | Acquired a Cetus Manufacturing Module code from A7 6022 | -6/Cetus | Spotted Cetus Guard 6022 | -6/Cetus | Spotted Cetus Guard 6025 | -6/Cetus | Spotted Cetus Guard 6026 | -6/Cetus | Allies destroyed Cetus Guard 6026 | -6/Cetus | Spotted Cetus Guard 6040 | -6/Cetus | Allies destroyed Cetus Guard 6044 | -6/Cetus | Allies destroyed Cetus Guard 6047 | -6/Cetus | Allies destroyed Cetus Guard 6118 | -6/Cetus | Escorted A7 to Cetus Mainframe 6127 | -6/Cetus | Started Cetus Manufacturing Module 6142 | -6/Cetus | Discovered new exit (range 15) 6152 | -6/Cetus | Manufactured an Enhanced Grunt 6175 | -6/Cetus | Spotted Cetus Guard 6175 | -6/Cetus | Spotted Cetus Guard 6177 | -6/Cetus | Manufactured an Enhanced Grunt 6177 | -6/Cetus | Spotted Cetus Guard 6178 | -6/Cetus | Spotted Cetus Guard 6182 | -6/Cetus | Allies destroyed Cetus Guard 6186 | -6/Cetus | Allies destroyed Cetus Guard 6200 | -6/Cetus | Allies destroyed Cetus Guard 6202 | -6/Cetus | Manufactured an Enhanced Grunt 6203 | -6/Cetus | Allies destroyed Cetus Guard 6212 | -6/Cetus | Discovered new exit (range 16) 6222 | -6/Cetus | Met Revision 17 6227 | -6/Cetus | Manufactured an Enhanced Grunt 6227 | -6/Cetus | Lost 6 allies 6252 | -6/Cetus | Manufactured an Enhanced Grunt 6317 | -6/Cetus | Entered Archives 6317 | -6/Archives | Accompanied by 8 allies (A7) 6322 | -6/Archives | Received a hacking code to weaken MAIN.C 6364 | -6/Archives | Discovered new exit (range 16) 6432 | -6/Archives | Discovered new exit (range 15) 6676 | -6/Archives | Discovered new exit (range 13) 6816 | -6/Archives | Entered Hub_04(d) 6816 | -6/Hub_04(d) | Accompanied by 6 allies 6816 | -6/Hub_04(d) | Discovered new exit (range 10) 7251 | -6/Hub_04(d) | Garrison activated, responded to threat 7253 | -6/Hub_04(d) | Discovered new exit (range 6) 7334 | -6/Hub_04(d) | Network Hub disabled 7340 | -6/Hub_04(d) | Spotted Lightning 7340 | -6/Hub_04(d) | Entered Factory 7340 | -5/Factory | Evolved 2 slots: Power x1, Utility x1 7405 | -5/Factory | Build established: Scavenger-Mutant 7754 | -5/Factory | Discovered new exit (range 10) 7878 | -5/Factory | Identified exit to Upper Caves 7995 | -5/Factory | Entered Upper Caves 7995 | -5/Upper Caves | Accompanied by 1 ally 7996 | -5/Upper Caves | Identified exit to Upper Caves 7997 | -5/Upper Caves | UFD Scientist delivered a prototype 8001 | -5/Upper Caves | Found Prototype Protection 8278 | -5/Upper Caves | Identified Enh. Scrap Shield 8309 | -5/Upper Caves | Lost 3 parts (1p1n1u) 8511 | -5/Upper Caves | Entered another Upper Caves area 8512 | -5/Upper Caves | Identified exit to Factory 8567 | -5/Upper Caves | Build established: Scavenger-Gunner 8757 | -5/Upper Caves | Lost 5 parts (2p2u1w) 8797 | -5/Upper Caves | Attracted the attention of an 0b10 outpost 8890 | -5/Upper Caves | System corruption reached 10% 8896 | -5/Upper Caves | System corruption reached 30% 8910 | -5/Upper Caves | Core integrity fell below 50% 8933 | -5/Upper Caves | Lost 13 parts (3p2n5u3w) 8979 | -5/Upper Caves | Learned location of Armory (-4) 8990 | -5/Upper Caves | Discovered new exit (range 5) 9000 | -5/Upper Caves | Entered Zhirov 9000 | -5/Zhirov | Discovered new exit (range 3) 9010 | -5/Zhirov | Met Zhirov 9023 | -5/Zhirov | Learned location of Quarantine (-2) 9023 | -5/Zhirov | Learned location of Testing (-3) 9023 | -5/Zhirov | Learned location of Command (-1) 9026 | -5/Zhirov | Zhirov requested help retrieving the SGEMP Prototype 9035 | -5/Zhirov | Found Alien Artifact 9035 | -5/Zhirov | Identified Integrated Dissipator 9035 | -5/Zhirov | Installed Integrated Dissipator, increased core heat dissipation (+20) 9043 | -5/Zhirov | Found Alien Artifact 9098 | -5/Zhirov | Entered Proximity Caves 9148 | -4/Proximity Caves | Attracted the attention of an 0b10 outpost 9182 | -4/Proximity Caves | Core integrity fell below 20% 9198 | -4/Proximity Caves | Attracted the attention of an 0b10 checkpoint 9200 | -4/Proximity Caves | Destroyed by Y-64 Sentinel with Wave Gun Last Messages --------------- 09167_ Found 41 Matter. 09167_ Mapping Drone retrieved by Mapping Drone Bay (no repairs). 09177_ Imp. Hacking Suite destroyed. 09178_ 7PZ GH TOF>#%3N M8U8YI1A 09179_ Mapping Drone released from Mapping Drone Bay. 09180_ Mapping Drone destroyed. 09182_ Mapping Drone retrieved by Mapping Drone Bay (repair cost: 2). 09184_ Mak. Flight Unit destroyed. 09185_ Mapping Drone Bay destroyed. 09187_ Dropped Particle Accelerator. 09192_ Adv. System Shield destroyed. 09194_ Adv. Terrain Scanner destroyed. 09197_ Slug penetrates Wall. 09198_ Y-64 Sentinel: "INTERCEPTING UNREGISTERED DERELICT." 09200_ Hacking Suite destroyed. 09200_ System corrupted by crushing effect (+1). Map ----- +----------------------------------------------------+ | #?## # ######## #?####????????? ??????? | | ### # ####?### ###??###?##??#?????????? | | # ! #####?# ####?##??##????????????? | | ### # # ####### #?#???#?#?#????????????? | | #####?## ####?## ####????###????????????? | | #?###??## ## ### ##?????#?#??#??????????? | | ########## ## ###?##?####???????????? | | #####?######### ! ##??#?#??##??????????? | | ?##?#??#?####?### # % ####???#??????#?????? | | #???#?##?#??##### ## $! #???##???##?#???????? | | ?#####?######## # ## #??###??????#???????? | | ??##???#?##### # ####???#?#???#??????? | | ??#?###?##### # ###?#?#?????????????? | | ###?##?##### ####### #?#?#????#??#??????? | | ?###?##?### ######?####??????????#???????? | | ?##?#?#### # ## # ##?###????##????????????? | | ???#??##?# "%"#?# # ####???????????????????? | | ??###?### ###?# # ##?#?##???????????????? | | ??##?### ##?## # s#s # ##??##???#???????????? | | ? ?##?## ?##?## s s #?????????#?????????? | | ? ? ?#?#### ?##?# # ##?#????????????????? | | ??? ? ??### ?## ## #???????????????????? | | ?? ??##??????# ##### ####?????#?????????????? | | ????? #???? ### ####### #?#????#?#?????????????? | | ????? ???????##?## ####???#???????????????? | | ???? ???? ??????#?# l @ #????????????????????? | | ??????????????#???# b ##??????????????????? | | ??????????????????# Y ##??????????????????? | | ???????????? ???? # #???????????????????? | | ??????????????????# #???????????????????? | | ?????????????????## #???????????????????? | | ??????????????????### ###???????????????????? | | ???????????????????? ##?????????????????????? | | ???????????????????### #??????????????????????? | | ?????????????????????## ???????????????????????? | | ??????????????????????# ???????????????????????? | | ??????????????????????# ???????????????????????? | | ??????????????????????# ???????????????????????? | | ??????????????????????## ???????????????????????? | | ????????????????????????##???????????????????????? | | ?????????????????????????????????????????????????? | | ?????????????????????????????????????????????????? | | ?????????????????????????????????????????????????? | | ?????????????????????????????????????????????????? | | ?????????????????????????????????????????????????? | | ?????????????????????????????????????????????????? | | ?????????????????????????????????????????????????? | | ?????????????????????????????????????????????????? | | ?????????????????????????????????????????????????? | | ?????????????????????????????????????????????????? | +----------------------------------------------------+ Best States ------------- Heat Dissipation 98 Energy Generation 46 Energy Capacity 590 Matter Stores 300 Matter Capacity 300 Sight Range 16 Terrain Scan Range 20 Terrain Scan Density 210 Jamming Range 12 Armor Coverage 800 Evasion (%) 59 Targeting Accuracy 10 Recoil Reduction 2 Particle Charging 20 Offensive Hacking 22 Defensive Hacking 14 Item Schematics ----------------- Exp. Heat Sink | -5/Zhirov | Free Exp. Optical Array | -5/Zhirov | Free Imp. Arc Thrower | -5/Zhirov | Free Assault Drone Bay | -5/Zhirov | Free Robot Schematics ------------------ None Fabricated ------------ Nothing Repaired ---------- Nothing Alien Tech Used ----------------- Integrated Dissipator Achievements -------------- None Challenges ------------ None Game ------ Seed DataAssemblyBroadsword Manual? 0 Play Time 01:11:48 Cumulative 205.1 hours Start 2025.08.23 @ 15:11:19 End 2025.08.23 @ 16:24:03 Sessions 1 Manual Loads 0 Difficulty Rogue Special Mode None Game No. 170 Rogue 170 Adventurer 0 Explorer 0 Win Type - Total 6 Types 4/0/1/1/0/0/0/0/0/0 Lore% 81 Gallery% 72 Achievement% 67 Wizard Run 0 Options --------- Layout 1 ASCII 0 Keyboard 0 Movement Numpad Keybinds 0 Fullscreen 1 Font 24/Smallcaps Map View 50x35 Zoom Use 0% Tactical HUD 1 Map Filters NONE Filters NONE Steam 1 RUN: 0995977f-d209-48e6-9b9d-0acbd141d404